fUSD/lending_fUSD_20250607
["ID","MTS","AMOUNT","RATE_DAILY","PERIOD"]
[364868941,1749282711199,-1026.76,0.00028547,5]
[364868942,1749282711217,-480.0,0.00028547,5]
[364868943,1749282711234,-548.30129919,0.00028547,5]
[364868944,1749282711254,-480.0,0.00028547,5]
[364868945,1749282711266,-480.0,0.00028547,5]
[364868946,1749282711276,-1323.94,0.00028547,5]
[364868947,1749282711285,-1037.35,0.00028547,5]
[364868948,1749282711296,-480.0,0.00028547,5]
[364868949,1749282711306,-550.37777813,0.00028547,5]
[364868950,1749282711316,-480.0,0.00028547,5]
[364868951,1749282711326,-480.0,0.00028547,5]
[364868952,1749282711335,-1212.38,0.00028547,5]
[364868953,1749282711345,-510.91271834,0.00028547,5]
[364868954,1749282711356,-480.0,0.00028547,5]
[364868955,1749282711366,-713.0,0.00028547,5]
[364868956,1749282711378,-811.35,0.00028547,5]
[364868957,1749282711389,-480.0,0.00028547,5]
[364868958,1749282711400,-634.26,0.00028547,5]
[364868959,1749282711410,-1174.57,0.00028547,5]
[364868960,1749282711422,-737.61,0.00028547,5]
[364868961,1749282711434,-1789.64,0.00028547,5]
[364868962,1749282711445,-480.0,0.00028547,5]
[364868963,1749282711455,-480.0,0.00028547,5]
[364868964,1749282711466,-480.0,0.00028547,5]
[364868965,1749282711477,-480.0,0.00028547,5]
[364868966,1749282711487,-480.0,0.00028547,5]
[364868967,1749282711497,-835.68,0.00028547,5]
[364868968,1749282711507,-480.0,0.00028547,5]
[364868969,1749282711518,-544.31370827,0.00028547,5]
[364868970,1749282711529,-611.81,0.00028547,5]
[364868971,1749282711539,-1115.25,0.00028547,5]
[364868972,1749282711549,-984.78,0.00028547,5]
[364868973,1749282711561,-592.62,0.00028547,5]
[364868974,1749282711572,-480.0,0.00028547,5]
[364868975,1749282711582,-480.0,0.00028547,5]
[364868976,1749282711592,-480.0,0.00028547,5]
[364868977,1749282711602,-480.0,0.00028547,5]
[364868978,1749282711612,-480.0,0.00028547,5]
[364868979,1749282711623,-2016.63,0.00028547,5]
[364868980,1749282711634,-480.0,0.00028547,5]
[364868981,1749282711644,-480.0,0.00028547,5]
[364868982,1749282711655,-1504.99,0.00028547,5]
[364868983,1749282711666,-652.14,0.00028547,5]
[364868984,1749282711677,-601.8,0.00028547,5]
[364868985,1749282711687,-1444.88,0.00028547,5]
[364868986,1749282711698,-787.2,0.00028547,5]
[364868987,1749282711710,-658.72,0.00028547,5]
[364868988,1749282711720,-853.62,0.00028547,5]
[364868989,1749282711730,-879.54,0.00028547,5]
[364868990,1749282711741,-480.0,0.00028547,5]
[364868991,1749282711751,-753.65,0.00028547,5]
[364868992,1749282711764,-990.87,0.00028547,5]
[364868993,1749282711774,-480.0,0.00028547,5]
[364868994,1749282711783,-1000.0,0.00028547,5]
[364868995,1749282711795,-850.33,0.00028547,5]
[364868996,1749282711805,-480.0,0.00028547,5]
[364868997,1749282711815,-494.24,0.00028547,5]
[364868998,1749282711824,-480.0,0.00028547,5]
[364868999,1749282711836,-614.65,0.00028547,5]
[364869000,1749282712406,-768.49,0.00028547,5]
[364869001,1749282712436,-485.62251727,0.00028547,5]
[364869002,1749282712466,-251.33606179,0.00028547,5]
[364869003,1749282712489,-620.08,0.00028547,5]
[364869004,1749282712509,-702.18,0.00028547,5]
[364869005,1749282712519,-480.0,0.00028547,5]
[364869006,1749282712529,-1066.78,0.00028547,5]
[364869007,1749282712539,-715.95,0.00028547,5]
[364869008,1749282712548,-480.0,0.00028547,5]
[364869009,1749282712559,-480.0,0.00028547,5]
[364869010,1749282712569,-656.54,0.00028547,5]
[364869011,1749282712579,-484.22831534,0.00028547,5]
[364869012,1749282712589,-871.81,0.00028547,5]
[364869013,1749282712599,-674.63,0.00028547,5]
[364869014,1749282712609,-607.29,0.00028547,5]
[364869015,1749282712619,-647.25,0.00028547,5]
[364869016,1749282712628,-508.78716392,0.00028547,5]
[364869017,1749282712639,-867.98,0.00028547,5]
[364869018,1749282712649,-1182.54,0.00028547,5]
[364869019,1749282712658,-480.0,0.00028547,5]
[364869020,1749282712668,-1150.03,0.00028547,5]
[364869021,1749282712678,-1505.03,0.00028547,5]
[364869022,1749282712688,-1473.87,0.00028547,5]
[364869023,1749282712697,-2996.31,0.00028547,5]
[364869024,1749282712707,-2181.17,0.00028547,5]
[364869025,1749282712716,-930.43,0.00028547,5]
[364869026,1749282712725,-7442.14,0.00028547,5]
[364869027,1749282712735,-480.0,0.00028547,5]
[364869028,1749282712745,-5891.72,0.00028547,5]
[364869029,1749282712755,-4307.55,0.00028547,5]
[364869030,1749282712765,-956.19,0.00028547,5]
[364869031,1749282712775,-244.34246864,0.00028547,5]
[364869032,1749282712786,-798.07,0.00028547,5]
[364869033,1749282712795,-1206.45,0.00028547,5]
[364869034,1749282712805,-480.0,0.00028547,5]
[364869035,1749282712815,-480.0,0.00028547,5]
[364869036,1749282712825,-1267.21,0.00028547,5]
[364869037,1749282712835,-480.0,0.00028547,5]
[364869038,1749282712844,-480.0,0.00028547,5]
[364869039,1749282712855,-5617.32,0.00028547,5]
[364869040,1749282712865,-798.33,0.00028547,5]
[364869041,1749282712876,-1111.08,0.00028547,5]
[364869042,1749282712890,-1613.36,0.00028547,5]
[364869043,1749282712900,-665.13,0.00028547,5]
[364869044,1749282712910,-984.27,0.00028547,5]
[364869045,1749282712920,-10955.06,0.00028547,5]
[364869046,1749282712931,-8194.39,0.00028547,5]
[364869047,1749282712940,-480.0,0.00028547,5]
[364869048,1749282712950,-835.03,0.00028547,5]
[364869049,1749282712961,-3592.23,0.00028547,5]
[364869050,1749282712971,-675.89,0.00028547,5]
[364869051,1749282712981,-480.0,0.00028547,5]
[364869052,1749282712991,-1342.98,0.00028547,5]
[364869053,1749282713001,-3803.92,0.00028547,5]
[364869054,1749282713011,-2538.94,0.00028547,5]
[364869055,1749282713021,-1427.01,0.00028547,5]
[364869056,1749282713031,-1719.89,0.00028547,5]
[364869057,1749282713041,-1821.11,0.00028547,5]
[364869058,1749282713051,-499.86842597,0.00028547,5]
[364869059,1749282713061,-1325.93,0.00028547,5]
[364869060,1749282713070,-480.0,0.00028547,5]
[364869061,1749282713080,-1072.0,0.00028547,5]
[364869062,1749282713089,-1892.42,0.00028547,5]
[364869063,1749282713098,-1000.0,0.00028547,5]
[364869064,1749282713108,-63362.5,0.00028547,5]
[364869065,1749282713117,-1666.49,0.00028547,5]
[364869066,1749282713127,-769.25,0.00028547,5]
[364869067,1749282713136,-480.0,0.00028547,5]
[364869068,1749282713146,-622.41,0.00028547,5]
[364869069,1749282713156,-480.0,0.00028547,5]
[364869070,1749282713166,-480.0,0.00028547,5]
[364869071,1749282713175,-802.83,0.00028547,5]
[364869072,1749282713185,-3297.59,0.00028547,5]
[364869073,1749282713195,-1298.4,0.00028547,5]
[364869074,1749282713205,-1257.45,0.00028547,5]
[364869075,1749282713215,-619.63,0.00028547,5]
[364869076,1749282713224,-480.0,0.00028547,5]
[364869077,1749282713233,-2010.42,0.00028547,5]
[364869078,1749282713243,-1795.02,0.00028547,5]
[364869079,1749282713253,-2147.53,0.00028547,2]
[364869080,1749282713262,-480.0,0.00028547,5]
[364869081,1749282713272,-2644.51,0.00028547,5]
[364869082,1749282713282,-1671.91,0.00028547,5]
[364869083,1749282713292,-480.0,0.00028547,5]
[364869084,1749282713302,-480.0,0.00028547,5]
[364869085,1749282713311,-2770.74,0.00028547,5]
[364869086,1749282713321,-3633.12,0.00028547,5]
[364869087,1749282713331,-480.0,0.00028547,5]
[364869088,1749282713340,-6110.32,0.00028547,5]
[364869089,1749282713350,-1513.66,0.00028547,5]
[364869090,1749282713360,-1788.9,0.00028547,5]
[364869091,1749282713370,-462.18013514,0.00028547,5]
[364869092,1749282713379,-814.18,0.00028547,5]
[364869093,1749282713389,-11876.34,0.00028547,5]
[364869094,1749282713399,-959.52,0.00028547,5]
[364869095,1749282713409,-2522.98,0.00028547,5]
[364869096,1749282713418,-1093.12,0.00028547,5]
[364869097,1749282713428,-1813.84,0.00028547,5]
[364869098,1749282713437,-481.61,0.00028547,5]
[364869099,1749282713447,-480.0,0.00028547,5]
[364869100,1749282713456,-6018.65,0.00028547,5]
[364869101,1749282713466,-1581.96,0.00028547,5]
[364869102,1749282713477,-855.47,0.00028547,5]
[364869103,1749282713487,-480.0,0.00028547,5]
[364869104,1749282713497,-480.0,0.00028547,5]
[364869105,1749282713507,-480.0,0.00028547,5]
[364869106,1749282713517,-5571.7,0.00028547,5]
[364869107,1749282713528,-1003.3,0.00028547,5]
[364869108,1749282713539,-1086.55,0.00028547,5]
[364869109,1749282713548,-1345.91,0.00028547,5]
[364869110,1749282713558,-1327.04,0.00028547,5]
[364869111,1749282713567,-2008.91,0.00028547,5]
[364869112,1749282713578,-1675.33,0.00028547,5]
[364869113,1749282713587,-734.71,0.00028547,5]
[364869114,1749282713597,-480.0,0.00028547,5]
[364869115,1749282713607,-1529.93,0.00028547,5]
[364869116,1749282713617,-434.66037246,0.00028547,5]
[364869117,1749282713626,-480.0,0.00028547,5]
[364869118,1749282713636,-596.66,0.00028547,5]
[364869119,1749282713646,-480.0,0.00028547,5]
[364869120,1749282713656,-1453.1,0.00028547,5]
[364869121,1749282713666,-3865.55,0.00028547,5]
[364869122,1749282713676,-3264.83,0.00028547,5]
[364869123,1749282713687,-967.54,0.00028547,5]
[364869124,1749282713697,-480.0,0.00028547,5]
[364869125,1749282713708,-871.56,0.00028547,5]
[364869126,1749282713719,-1458.57,0.00028547,5]
[364869127,1749282713729,-749.45,0.00028547,5]
[364869128,1749282713740,-480.0,0.00028547,5]
[364869129,1749282713750,-915.39,0.00028547,5]
[364869130,1749282713761,-338.81397896,0.00028547,5]
[364869131,1749282713771,-4023.49,0.00028547,5]
[364869132,1749282713781,-1170.49,0.00028547,5]
[364869133,1749282713791,-480.0,0.00028547,5]
[364869134,1749282713801,-742.56,0.00028547,5]
[364869135,1749282713811,-1731.59,0.00028547,5]
[364869136,1749282713822,-594.14,0.00028547,5]
[364869137,1749282713834,-480.0,0.00028547,5]
[364869138,1749282713844,-480.0,0.00028547,5]
[364869139,1749282713854,-1143.16,0.00028547,5]
[364869140,1749282713864,-480.0,0.00028547,5]
[364869141,1749282713874,-2029.78,0.00028547,5]
[364869142,1749282713886,-2000.65,0.00028547,5]
[364869143,1749282713896,-480.0,0.00028547,5]
[364869144,1749282713906,-485.39,0.00028547,5]
[364869145,1749282713916,-1386.31,0.00028547,5]
[364869146,1749282713928,-683.94,0.00028547,5]
[364869147,1749282713938,-747.9,0.00028547,5]
[364869148,1749282713947,-1122.69,0.00028547,5]
[364869149,1749282713957,-480.0,0.00028547,5]
[364869150,1749282713967,-480.0,0.00028547,5]
[364869151,1749282713977,-480.0,0.00028547,5]
[364869152,1749282713987,-494.08,0.00028547,5]
[364869153,1749282713997,-518.65,0.00028547,5]
[364869154,1749282714007,-492.12,0.00028547,5]
[364869155,1749282714017,-1941.16,0.00028547,5]
[364869156,1749282714027,-788.44,0.00028547,5]
[364869157,1749282714036,-480.0,0.00028547,5]
[364869158,1749282714046,-480.0,0.00028547,5]
[364869159,1749282714057,-480.0,0.00028547,5]
[364869160,1749282714068,-499.42,0.00028547,5]
[364869161,1749282714078,-2403.78,0.00028547,5]
[364869162,1749282714088,-757.09,0.00028547,5]
[364869163,1749282714097,-480.0,0.00028547,5]
[364869164,1749282714107,-957.28,0.00028547,5]
[364869165,1749282714118,-697.95,0.00028547,5]
[364869166,1749282714128,-575.71,0.00028547,5]
[364869167,1749282714138,-480.0,0.00028547,5]
[364869168,1749282714148,-748.21,0.00028547,5]
[364869169,1749282714158,-480.0,0.00028547,5]
[364869170,1749282714169,-607.22,0.00028547,5]
[364869171,1749282714179,-480.0,0.00028547,5]
[364869172,1749282714189,-5005.59,0.00028547,5]
[364869173,1749282714199,-10865.99,0.00028547,5]
[364869174,1749282714216,-4322.98,0.00028547,5]
[364869175,1749282714228,-1739.86,0.00028547,5]
[364869176,1749282714239,-630.74,0.00028547,5]
[364869177,1749282714249,-535.98453359,0.00028547,5]
[364869178,1749282714259,-480.0,0.00028547,5]
[364869179,1749282714269,-480.0,0.00028547,5]
[364869180,1749282714279,-1078.23,0.00028547,5]
[364869181,1749282714289,-480.0,0.00028547,5]
[364869182,1749282714299,-1387.38,0.00028547,5]
[364869183,1749282714309,-689.06,0.00028547,5]
[364869184,1749282714319,-480.0,0.00028547,5]
[364869185,1749282714330,-16410.82,0.00028547,5]
[364869186,1749282714340,-1650.11,0.00028547,5]
[364869187,1749282714350,-7442.43,0.00028547,5]
[364869188,1749282714361,-3593.96,0.00028547,5]
[364869189,1749282714372,-749.65,0.00028547,5]
[364869190,1749282714382,-590.0,0.00028547,5]
[364869191,1749282714393,-2124.13,0.00028547,5]
[364869192,1749282714402,-816.17,0.00028547,5]
[364869193,1749282714413,-665.9,0.00028547,5]
[364869194,1749282714423,-2227.22,0.00028547,5]
[364869195,1749282714433,-1352.48,0.00028547,5]
[364869196,1749282714442,-480.0,0.00028547,5]
[364869197,1749282714452,-507.82,0.00028547,5]
[364869198,1749282714462,-480.0,0.00028547,5]
[364869199,1749282714472,-1744.26,0.00028547,5]
[364869200,1749282714482,-480.0,0.00028547,5]
[364869201,1749282714493,-3612.7,0.00028547,5]
[364869202,1749282714503,-480.0,0.00028547,5]
[364869203,1749282714514,-480.0,0.00028547,5]
[364869204,1749282714524,-480.0,0.00028547,5]
[364869205,1749282714534,-480.0,0.00028547,5]
[364869206,1749282714544,-1656.96,0.00028547,5]
[364869207,1749282714554,-1260.39,0.00028547,5]
[364869208,1749282714565,-915.34,0.00028547,5]
[364869209,1749282714575,-480.0,0.00028547,5]
[364869210,1749282714586,-980.64,0.00028547,5]
[364869211,1749282714596,-3111.73,0.00028547,5]
[364869212,1749282714606,-642.18,0.00028547,5]
[364869213,1749282714616,-959.96,0.00028547,5]
[364869214,1749282714626,-480.0,0.00028547,5]
[364869215,1749282714636,-929.79,0.00028547,5]
[364869216,1749282714652,-326.45,0.00028557,2]
[364869217,1749282714662,-163.25,0.00028557,2]
[364869218,1749282714672,-1855.77153938,0.00028565,2]
[364869219,1749282714681,-420.84217298,0.00028571,4]
[364869220,1749282714690,-300.0,0.0002858,2]
[364869221,1749282714700,-151.0,0.00028599,7]
[364869222,1749282714711,-151.0,0.00028599,7]
[364869223,1749282714720,-151.0,0.00028599,7]
[364869224,1749282714731,-151.0,0.00028599,7]
[364869225,1749282714741,-151.0,0.00028599,7]
[364869226,1749282714752,-184.492524,0.00028599,7]
[364869227,1749282714762,-494.09713034,0.00028624,19]
[364869228,1749282714774,-279.10775981,0.00028627,7]
[364869229,1749282714784,-150.0,0.00028627,7]
[364869230,1749282714794,-150.0,0.00028627,7]
[364869231,1749282714804,-218.84593086,0.00028627,7]
[364869232,1749282714814,-151.89863202,0.00028627,7]
[364869233,1749282714825,-150.0,0.00028627,7]
[364869234,1749282714835,-150.0,0.00028627,7]
[364869235,1749282714845,-150.0,0.00028627,7]
[364869236,1749282714856,-150.0,0.00028627,7]
[364869237,1749282714867,-150.0,0.00028627,7]
[364869238,1749282714878,-150.0,0.00028627,7]
[364869239,1749282714890,-150.0,0.00028627,7]
[364869240,1749282714900,-150.0,0.00028627,7]
[364869241,1749282714910,-152.0,0.00028647,4]
[364869242,1749282714921,-279.10775981,0.00028659,7]
[364869243,1749282714933,-218.84593086,0.00028659,7]
[364869244,1749282714943,-150.0,0.0002867,7]
[364869245,1749282714953,-150.0,0.00028673,7]
[364869246,1749282714966,-279.10775981,0.00028691,7]
[364869247,1749282714977,-218.84593086,0.00028691,7]
[364869248,1749282714988,-150.0,0.00028692,7]
[364869249,1749282714998,-151.0,0.000287,7]
[364869250,1749282715008,-151.0,0.000287,7]
[364869251,1749282715019,-156.804286,0.000287,7]
[364869252,1749282715030,-687.42033,0.000287,7]
[364869253,1749282715040,-687.42033,0.000287,7]
[364869254,1749282715051,-212.591451,0.000287,7]
[364869255,1749282715061,-2000.0,0.000287,2]
[364869256,1749282715072,-150.0,0.00028709,7]
[364869257,1749282715083,-151.0,0.00028712,7]
[364869258,1749282715093,-251.794654,0.00028712,7]
[364869259,1749282715104,-151.0,0.00028712,7]
[364869260,1749282715119,-151.0,0.00028712,7]
[364869261,1749282715130,-200.378318,0.00028712,7]
[364869262,1749282715140,-151.0,0.00028712,7]
[364869263,1749282715151,-151.0,0.00028712,7]
[364869264,1749282715162,-151.0,0.00028712,7]
[364869265,1749282715172,-202.065599,0.00028712,7]
[364869266,1749282715182,-151.0,0.00028712,7]
[364869267,1749282715192,-151.0,0.00028712,7]
[364869268,1749282715201,-151.0,0.00028712,7]
[364869269,1749282715211,-151.0,0.00028712,7]
[364869270,1749282715222,-562.233048,0.00028712,7]
[364869271,1749282715232,-562.233048,0.00028712,7]
[364869272,1749282715242,-151.0,0.00028712,7]
[364869273,1749282715253,-151.0,0.00028712,7]
[364869274,1749282715263,-336.53621,0.00028712,7]
[364869275,1749282715273,-151.0,0.00028712,7]
[364869276,1749282715284,-336.53621,0.00028712,7]
[364869277,1749282715294,-202.3884,0.00028712,7]
[364869278,1749282715305,-202.3884,0.00028712,7]
[364869279,1749282715315,-199.862751,0.00028712,7]
[364869280,1749282715325,-199.862751,0.00028712,7]
[364869281,1749282715336,-176.069404,0.00028712,7]
[364869282,1749282715347,-151.0,0.00028712,7]
[364869283,1749282715357,-225.218056,0.00028712,7]
[364869284,1749282715369,-151.0,0.00028712,7]
[364869285,1749282715380,-335.472379,0.00028712,7]
[364869286,1749282715391,-335.472379,0.00028712,7]
[364869287,1749282715402,-151.0,0.00028712,7]
[364869288,1749282715412,-154.25564,0.00028712,7]
[364869289,1749282715422,-154.25564,0.00028712,7]
[364869290,1749282715432,-151.0,0.00028712,7]
[364869291,1749282715442,-171.882811,0.00028712,7]
[364869292,1749282715453,-171.882811,0.00028712,7]
[364869293,1749282715463,-151.0,0.00028712,7]
[364869294,1749282715473,-961.409907,0.00028712,7]
[364869295,1749282715483,-961.409907,0.00028712,7]
[364869296,1749282715494,-151.0,0.00028712,7]
[364869297,1749282715504,-255.422278,0.00028712,7]
[364869298,1749282715514,-425.355225,0.00028712,28]
[364869299,1749282715525,-151.0,0.00028712,7]
[364869300,1749282715536,-258.138741,0.00028712,7]
[364869301,1749282715559,-258.138741,0.00028712,7]
[364869302,1749282715571,-151.0,0.00028712,7]
[364869303,1749282715583,-308.719033,0.00028712,7]
[364869304,1749282715594,-308.719033,0.00028712,7]
[364869305,1749282715605,-1128.633104,0.00028712,7]
[364869306,1749282715616,-1128.633104,0.00028712,7]
[364869307,1749282715627,-1221.810892,0.00028712,7]
[364869308,1749282715638,-1221.810884,0.00028712,7]
[364869309,1749282715648,-151.0,0.00028712,7]
[364869310,1749282715660,-151.0,0.00028712,7]
[364869311,1749282715671,-1106.284742,0.00028712,7]
[364869312,1749282715683,-1106.284742,0.00028712,7]
[364869313,1749282715693,-160.353024,0.00028712,7]
[364869314,1749282715705,-1077.542394,0.00028712,7]
[364869315,1749282715717,-1077.542394,0.00028712,7]
[364869316,1749282715727,-1715.887585,0.00028712,5]
[364869317,1749282715738,-2102.121321,0.00028712,5]
[364869318,1749282715750,-162.958385,0.00028712,5]
[364869319,1749282715760,-480.0,0.00028712,5]
[364869320,1749282715771,-480.0,0.00028712,5]
[364869321,1749282715783,-495.78,0.00028712,5]
[364869322,1749282715794,-480.0,0.00028712,5]
[364869323,1749282715804,-813.01,0.00028712,5]
[364869324,1749282715815,-480.0,0.00028712,5]
[364869325,1749282715826,-480.0,0.00028712,5]
[364869326,1749282715837,-480.0,0.00028712,5]
[364869327,1749282715847,-480.0,0.00028712,5]
[364869328,1749282715858,-571.95458182,0.00028712,5]
[364869329,1749282715869,-480.0,0.00028712,5]
[364869330,1749282715882,-480.0,0.00028712,5]
[364869331,1749282715893,-480.0,0.00028712,2]
[364869332,1749282715904,-480.0,0.00028712,2]
[364869333,1749282715914,-480.0,0.00028712,5]
[364869334,1749282716222,-577.15,0.00028712,5]
[364869335,1749282716246,-480.0,0.00028712,5]
[364869336,1749282716257,-509.8,0.00028712,5]
[364869337,1749282716267,-480.0,0.00028712,5]
[364869338,1749282716277,-480.0,0.00028712,5]
[364869339,1749282716288,-480.0,0.00028712,2]
[364869340,1749282716299,-480.0,0.00028712,5]
[364869341,1749282716309,-480.0,0.00028712,5]
[364869342,1749282716319,-480.0,0.00028712,5]
[364869343,1749282716330,-618.47,0.00028712,5]
[364869344,1749282716340,-842.56,0.00028712,5]
[364869345,1749282716351,-480.0,0.00028712,5]
[364869346,1749282716361,-1163.74,0.00028712,5]
[364869347,1749282716372,-807.84,0.00028712,5]
[364869348,1749282716382,-355.30553004,0.00028712,5]
[364869349,1749282716392,-526.5,0.00028712,5]
[364869350,1749282716402,-480.0,0.00028712,5]
[364869351,1749282716412,-722.49,0.00028712,5]
[364869352,1749282716422,-480.0,0.00028712,5]
[364869353,1749282716433,-658.07,0.00028712,5]
[364869354,1749282716444,-480.0,0.00028712,5]
[364869355,1749282716454,-548.11,0.00028712,5]
[364869356,1749282716464,-480.0,0.00028712,5]
[364869357,1749282716475,-480.0,0.00028712,5]
[364869358,1749282716485,-1423.16,0.00028712,5]
[364869359,1749282716495,-676.89,0.00028712,5]
[364869360,1749282716504,-1030.91,0.00028712,5]
[364869361,1749282716514,-480.0,0.00028712,5]
[364869362,1749282716525,-903.48,0.00028712,5]
[364869363,1749282716535,-545.14,0.00028712,5]
[364869364,1749282716546,-580.63,0.00028712,5]
[364869365,1749282716555,-624.11,0.00028712,5]
[364869366,1749282716566,-480.0,0.00028712,5]
[364869367,1749282716575,-249.10899414,0.00028712,5]
[364869368,1749282716585,-480.0,0.00028712,5]
[364869369,1749282716595,-480.0,0.00028712,5]
[364869370,1749282716605,-1137.84,0.00028712,5]
[364869371,1749282716618,-1026.76,0.00028712,5]
[364869372,1749282716628,-480.0,0.00028712,5]
[364869373,1749282716638,-264.93261106,0.00028712,5]
[364869374,1749282716648,-445.80753191,0.00028712,5]
[364869375,1749282716658,-1323.94,0.00028712,5]
[364869376,1749282716668,-1037.35,0.00028712,5]
[364869377,1749282716678,-480.0,0.00028712,5]
[364869378,1749282716690,-186.75305285,0.00028712,5]
[364869379,1749282716700,-480.0,0.00028712,5]
[364869380,1749282716712,-1212.38,0.00028712,5]
[364869381,1749282716725,-480.0,0.00028712,5]
[364869382,1749282716736,-713.0,0.00028712,5]
[364869383,1749282716746,-811.35,0.00028712,5]
[364869384,1749282716756,-480.0,0.00028712,5]
[364869385,1749282716768,-634.26,0.00028712,5]
[364869386,1749282716778,-1174.57,0.00028712,5]
[364869387,1749282716788,-737.61,0.00028712,5]
[364869388,1749282716799,-1789.64,0.00028712,5]
[364869389,1749282716809,-480.0,0.00028712,5]
[364869390,1749282716819,-480.0,0.00028712,5]
[364869391,1749282716829,-480.0,0.00028712,5]
[364869392,1749282716838,-480.0,0.00028712,5]
[364869393,1749282716847,-504.56308384,0.00028712,5]
[364869394,1749282716857,-835.68,0.00028712,5]
[364869395,1749282716869,-480.0,0.00028712,5]
[364869396,1749282716880,-611.81,0.00028712,5]
[364869397,1749282716890,-1115.25,0.00028712,5]
[364869398,1749282716900,-984.78,0.00028712,5]
[364869399,1749282716910,-592.62,0.00028712,5]
[364869400,1749282716921,-480.0,0.00028712,5]
[364869401,1749282716931,-480.0,0.00028712,5]
[364869402,1749282716941,-480.0,0.00028712,5]
[364869403,1749282716951,-480.0,0.00028712,5]
[364869404,1749282716962,-480.0,0.00028712,5]
[364869405,1749282716973,-2016.63,0.00028712,5]
[364869406,1749282716983,-480.0,0.00028712,5]
[364869407,1749282716993,-480.0,0.00028712,5]
[364869408,1749282717003,-1504.99,0.00028712,5]
[364869409,1749282717013,-652.14,0.00028712,5]
[364869410,1749282717024,-601.8,0.00028712,5]
[364869411,1749282717034,-1444.88,0.00028712,5]
[364869412,1749282717044,-787.2,0.00028712,5]
[364869413,1749282717054,-658.72,0.00028712,5]
[364869414,1749282717065,-853.62,0.00028712,5]
[364869415,1749282717076,-879.54,0.00028712,5]
[364869416,1749282717086,-480.0,0.00028712,5]
[364869417,1749282717096,-753.65,0.00028712,5]
[364869418,1749282717106,-990.87,0.00028712,5]
[364869419,1749282717117,-480.0,0.00028712,5]
[364869420,1749282717127,-1000.0,0.00028712,5]
[364869421,1749282717137,-850.33,0.00028712,5]
[364869422,1749282717148,-273.32582802,0.00028712,5]
[364869423,1749282717158,-494.24,0.00028712,5]
[364869424,1749282717168,-480.0,0.00028712,5]
[364869425,1749282717178,-614.65,0.00028712,5]
[364869426,1749282717188,-768.49,0.00028712,5]
[364869427,1749282717199,-620.08,0.00028712,5]
[364869428,1749282717209,-702.18,0.00028712,5]
[364869429,1749282717220,-480.0,0.00028712,5]
[364869430,1749282717230,-1066.78,0.00028712,5]
[364869431,1749282717240,-715.95,0.00028712,5]
[364869432,1749282717250,-480.0,0.00028712,5]
[364869433,1749282717260,-480.0,0.00028712,5]
[364869434,1749282717270,-656.54,0.00028712,5]
[364869435,1749282717280,-871.81,0.00028712,5]
[364869436,1749282717291,-674.63,0.00028712,5]
[364869437,1749282717301,-607.29,0.00028712,5]
[364869438,1749282717312,-647.25,0.00028712,5]
[364869439,1749282717322,-867.98,0.00028712,5]
[364869440,1749282717332,-1182.54,0.00028712,5]